{"text_format":"3","workbook":"xlsx","n_sheets":2,"sheets":["Start","Planner voor feestdagenbudget"],"not_rendered":{"defined_names":1},"read":"whole","date_system":"1900"}

{"sheet":"Start","index":0,"n_rows":7,"n_cols":2,"rows_kept":7}
[null,"OVER DEZE SJABLOON"]
[null,"Houd uw uitgaven bij met Planner voor feestdagenbudget."]
[null,"Voer het budget en de werkelijk gemaakte kosten voor verschillende items in in tabellen."]
[null,"Het feestdagenbudget, totaal werkelijk bestede bedrag en verschil worden automatisch voor u berekend."]
[null,"Opmerking: "]
[null,"Kolom A van het werkblad Feestdagenbudgetplanner bevat aanvullende instructies. PLANNER VOOR FEESTDAGENBUDGET. Als u tekst wilt verwijderen, selecteert u kolom A en drukt u op Delete. Als u de tekst zichtbaar wilt maken, selecteert u kolom A en wijzigt u de tekenkleur."]
[null,"Als u meer wilt weten over tabellen, drukt u in een TABEL op Shift en F10 en selecteert u de optie TABEL en vervolgens ALTERNATIEVE TEKST."]

{"sheet":"Planner voor feestdagenbudget","index":1,"n_rows":32,"n_cols":12,"rows_kept":32,"merged":[[1,1,5,4],[2,8,2,9],[3,8,3,9],[4,8,4,9],[6,1,6,4],[6,8,6,11],[15,1,15,4],[15,8,15,11],[25,1,25,4],[25,8,25,11]]}
["Voer budget en werkelijk kosten in voor elke categorie in de desbetreffende tabellen in dit werkblad. Cellen in deze kolom bevatten handige instructies voor het gebruik van dit werkblad. Druk op de pijl-omlaag om aan de slag te gaan. "]
["De titel van dit werkblad staat in de cel rechts.","Planner voor feestdagenbudget"]
["Het feestdagenbudget wordt automatisch berekend in cel K3.",{"$nulls":7},"FEESTDAGENBUDGET",null,{"$f":"SUM(Cadeaus[Budget],Verpakking[Budget],(Reiskosten[Budget],(Maaltijden[Budget],(Gastvrijheid[Budget],Diversen[Budget]))))","v":{"v":750,"d":"€ 750.00"}}]
["De werkelijk uitgegeven worden automatisch berekend in cel K4.",{"$nulls":7},"WERKELIJK UITGEGEVEN",null,{"$f":"SUM((Cadeaus[Werkelijk],(Verpakking[Werkelijk],(Reiskosten[Werkelijk],(Maaltijden[Werkelijk],(Gastvrijheid[Werkelijk],(Diversen[Werkelijk])))))))","v":{"v":820,"d":"€ 820.00"}}]
["Het verschil wordt automatisch berekend in cel K5. Volgende aanwijzing staat in cel A7.",{"$nulls":7},"VERSCHIL (boven of onder het budget)",null,{"$f":"SUM(K3-K4)","v":{"v":-70,"d":"€ -70.00"}}]
[]
["Het label Cadeaus staat in de cel rechts, en het label Feestmaaltijden in cel I7.","Cadeaus",{"$nulls":6},"Feestmaaltijden"]
["Voer uitgaven voor cadeaus in in de tabel die begint in de cel rechts, en voor maaltijden in de tabel die begint in cel I8. De volgende aanwijzing staat in cel A16.","Item","Budget","Werkelijk","Verschil",{"$nulls":3},"Item","Budget","Werkelijk","Verschil"]
[null,"Familie",{"v":500,"d":"€ 500.00"},{"v":495,"d":"€ 495.00"},{"$f":"Cadeaus[[#This Row],[Budget]]-Cadeaus[[#This Row],[Werkelijk]]","v":{"v":5,"d":"€ 5.00"}},{"$nulls":3},"Boodschappen",null,null,{"$f":"Maaltijden[[#This Row],[Budget]]-Maaltijden[[#This Row],[Werkelijk]]","v":{"v":0,"d":"€ 0.00"}}]
[null,"Vrienden",{"v":250,"d":"€ 250.00"},{"v":325,"d":"€ 325.00"},{"$f":"Cadeaus[[#This Row],[Budget]]-Cadeaus[[#This Row],[Werkelijk]]","v":{"v":-75,"d":"-€ 75.00"}},{"$nulls":3},"Drank",null,null,{"$f":"Maaltijden[[#This Row],[Budget]]-Maaltijden[[#This Row],[Werkelijk]]","v":{"v":0,"d":"€ 0.00"}}]
[null,"Collega’s",null,null,{"$f":"Cadeaus[[#This Row],[Budget]]-Cadeaus[[#This Row],[Werkelijk]]","v":{"v":0,"d":"€ 0.00"}},{"$nulls":3},"Versieringen",null,null,{"$f":"Maaltijden[[#This Row],[Budget]]-Maaltijden[[#This Row],[Werkelijk]]","v":{"v":0,"d":"€ 0.00"}}]
[null,"Docenten, kinderjuffrouw, babysitters, enzovoort",null,null,{"$f":"Cadeaus[[#This Row],[Budget]]-Cadeaus[[#This Row],[Werkelijk]]","v":{"v":0,"d":"€ 0.00"}},{"$nulls":3},"Anders (druk in de laatste kolom van deze rij op Tab om een rij toe te voegen)",null,null,{"$f":"Maaltijden[[#This Row],[Budget]]-Maaltijden[[#This Row],[Werkelijk]]","v":{"v":0,"d":"€ 0.00"}}]
[null,"Donaties aan goede doelen",null,null,{"$f":"Cadeaus[[#This Row],[Budget]]-Cadeaus[[#This Row],[Werkelijk]]","v":{"v":0,"d":"€ 0.00"}},{"$nulls":3},"Totaal",{"$f":"SUBTOTAL(109,Maaltijden[Budget])","v":{"v":0,"d":"€ 0.00"}},{"$f":"SUBTOTAL(109,Maaltijden[Werkelijk])","v":{"v":0,"d":"€ 0.00"}},{"$f":"SUBTOTAL(109,Maaltijden[Verschil])","v":{"v":0,"d":"€ 0.00"}}]
[null,"Anders (druk in de laatste kolom van deze rij op Tab om een rij toe te voegen)",null,null,{"$f":"Cadeaus[[#This Row],[Budget]]-Cadeaus[[#This Row],[Werkelijk]]","v":{"v":0,"d":"€ 0.00"}}]
[null,"Totaal",{"$f":"SUBTOTAL(109,Cadeaus[Budget])","v":{"v":750,"d":"€ 750.00"}},{"$f":"SUBTOTAL(109,Cadeaus[Werkelijk])","v":{"v":820,"d":"€ 820.00"}},{"$f":"SUBTOTAL(109,Cadeaus[Verschil])","v":{"v":-70,"d":"-€ 70.00"}}]
["Het label Verpakking staat in de cel rechts, en het label Gastvrijheid in cel I16.","Verpakking",{"$nulls":6},"Gastvrijheid"]
["Voer uitgaven voor verpakking in in de tabel die begint in de cel rechts, en voor gastvrijheid in de tabel die begint in cel I17. De volgende aanwijzing staat in cel A26.","Item","Budget","Werkelijk","Verschil",{"$nulls":3},"Item","Budget","Werkelijk","Verschil"]
[null,"Inpakpapier",null,null,{"$f":"Verpakking[[#This Row],[Budget]]-Verpakking[[#This Row],[Werkelijk]]","v":{"v":0,"d":"€ 0.00"}},{"$nulls":3},"Hulp (bartender, catering, schoonmakers, enzovoort)",null,null,{"$f":"Gastvrijheid[[#This Row],[Budget]]-Gastvrijheid[[#This Row],[Werkelijk]]","v":{"v":0,"d":"€ 0.00"}}]
[null,"Labels",null,null,{"$f":"Verpakking[[#This Row],[Budget]]-Verpakking[[#This Row],[Werkelijk]]","v":{"v":0,"d":"€ 0.00"}},{"$nulls":3},"Versieringen",null,null,{"$f":"Gastvrijheid[[#This Row],[Budget]]-Gastvrijheid[[#This Row],[Werkelijk]]","v":{"v":0,"d":"€ 0.00"}}]
[null,"Benodigdheden (lint, plakband, enzovoort)",null,null,{"$f":"Verpakking[[#This Row],[Budget]]-Verpakking[[#This Row],[Werkelijk]]","v":{"v":0,"d":"€ 0.00"}},{"$nulls":3},"Eten en drinken",null,null,{"$f":"Gastvrijheid[[#This Row],[Budget]]-Gastvrijheid[[#This Row],[Werkelijk]]","v":{"v":0,"d":"€ 0.00"}}]
[null,"Dozen",null,null,{"$f":"Verpakking[[#This Row],[Budget]]-Verpakking[[#This Row],[Werkelijk]]","v":{"v":0,"d":"€ 0.00"}},{"$nulls":3},"Kleding",null,null,{"$f":"Gastvrijheid[[#This Row],[Budget]]-Gastvrijheid[[#This Row],[Werkelijk]]","v":{"v":0,"d":"€ 0.00"}}]
[null,"Portokosten",null,null,{"$f":"Verpakking[[#This Row],[Budget]]-Verpakking[[#This Row],[Werkelijk]]","v":{"v":0,"d":"€ 0.00"}},{"$nulls":3},"Tickets",null,null,{"$f":"Gastvrijheid[[#This Row],[Budget]]-Gastvrijheid[[#This Row],[Werkelijk]]","v":{"v":0,"d":"€ 0.00"}}]
[null,"Anders (druk in de laatste kolom van deze rij op Tab om een rij toe te voegen)",null,null,{"$f":"Verpakking[[#This Row],[Budget]]-Verpakking[[#This Row],[Werkelijk]]","v":{"v":0,"d":"€ 0.00"}},{"$nulls":3},"Uit eten",null,null,{"$f":"Gastvrijheid[[#This Row],[Budget]]-Gastvrijheid[[#This Row],[Werkelijk]]","v":{"v":0,"d":"€ 0.00"}}]
[null,"Totaal",{"$f":"SUBTOTAL(109,Verpakking[Budget])","v":{"v":0,"d":"€ 0.00"}},{"$f":"SUBTOTAL(109,Verpakking[Werkelijk])","v":{"v":0,"d":"€ 0.00"}},{"$f":"SUBTOTAL(109,Verpakking[Verschil])","v":{"v":0,"d":"€ 0.00"}},{"$nulls":3},"Anders (druk in de laatste kolom van deze rij op Tab om een rij toe te voegen)",null,null,{"$f":"Gastvrijheid[[#This Row],[Budget]]-Gastvrijheid[[#This Row],[Werkelijk]]","v":{"v":0,"d":"€ 0.00"}}]
[{"$nulls":8},"Totaal",{"$f":"SUBTOTAL(109,Gastvrijheid[Budget])","v":{"v":0,"d":"€ 0.00"}},{"$f":"SUBTOTAL(109,Gastvrijheid[Werkelijk])","v":{"v":0,"d":"€ 0.00"}},{"$f":"SUBTOTAL(109,Gastvrijheid[Verschil])","v":{"v":0,"d":"€ 0.00"}}]
["Het label Reiskosten staat in de cel rechts, en het label Diversen in cel I26.","Reiskosten",{"$nulls":6},"Diversen"]
["Voer uitgaven voor reiskosten in in de tabel die begint in de cel rechts, en voor diversen uitgaven in de tabel die begint in cel I27.","Item","Budget","Werkelijk","Verschil",{"$nulls":3},"Item","Budget","Werkelijk","Verschil"]
[null,"Vliegtickets",null,null,{"$f":"Reiskosten[[#This Row],[Budget]]-Reiskosten[[#This Row],[Werkelijk]]","v":{"v":0,"d":"€ 0.00"}},{"$nulls":3},"Foto’s",null,null,{"$f":"Diversen[[#This Row],[Budget]]-Diversen[[#This Row],[Werkelijk]]","v":{"v":0,"d":"€ 0.00"}}]
[null,"Overnachting",null,null,{"$f":"Reiskosten[[#This Row],[Budget]]-Reiskosten[[#This Row],[Werkelijk]]","v":{"v":0,"d":"€ 0.00"}},{"$nulls":3},"Benzine ",null,null,{"$f":"Diversen[[#This Row],[Budget]]-Diversen[[#This Row],[Werkelijk]]","v":{"v":0,"d":"€ 0.00"}}]
[null,"Vervoer",null,null,{"$f":"Reiskosten[[#This Row],[Budget]]-Reiskosten[[#This Row],[Werkelijk]]","v":{"v":0,"d":"€ 0.00"}},{"$nulls":3},"Anders (druk in de laatste kolom van deze rij op Tab om een rij toe te voegen)",null,null,{"$f":"Diversen[[#This Row],[Budget]]-Diversen[[#This Row],[Werkelijk]]","v":{"v":0,"d":"€ 0.00"}}]
[null,"Anders (druk in de laatste kolom van deze rij op Tab om een rij toe te voegen)",null,null,{"$f":"Reiskosten[[#This Row],[Budget]]-Reiskosten[[#This Row],[Werkelijk]]","v":{"v":0,"d":"€ 0.00"}},{"$nulls":3},"Totaal",{"$f":"SUBTOTAL(109,Diversen[Budget])","v":{"v":0,"d":"€ 0.00"}},{"$f":"SUBTOTAL(109,Diversen[Werkelijk])","v":{"v":0,"d":"€ 0.00"}},{"$f":"SUBTOTAL(109,Diversen[Verschil])","v":{"v":0,"d":"€ 0.00"}}]
[null,"Totaal",{"$f":"SUBTOTAL(109,Reiskosten[Budget])","v":{"v":0,"d":"€ 0.00"}},{"$f":"SUBTOTAL(109,Reiskosten[Werkelijk])","v":{"v":0,"d":"€ 0.00"}},{"$f":"SUBTOTAL(109,Reiskosten[Verschil])","v":{"v":0,"d":"€ 0.00"}}]